Cogmind - Beta 14 @@@ ROGUE MODE // 2024.08.14 @ 10:05:01 Player: Calasmeer Result: Destroyed by Y-54 Guardian with Flak Gun Performance ------------- Evolutions (0) 0 Regions Visited (3) 600 Robots Destroyed (39) 195 Value Destroyed (1222) 1222 Prototype IDs (11) 220 Alien Tech Used (0) 0 Bonus (-26) -26 TOTAL SCORE: 2211 Bonus ------- Friendly Fire -26 Cogmind --------- Core Integrity 0/250 Matter 75/300 Energy 100/100 System Corruption 0% Temperature Cool (12) Movement Rolling (115) Ox1 Location -7/Recycling Parts ------- > --- POWER (1) -------- (None) > --- PROPULSION (2) --- Compact Wheel > --- UTILITY (2) ------ Medium Storage Unit Makeshift Light Armor Plating > --- WEAPON (2) ------- Subdweller Machine Gun Subdweller Shrapnel Launcher > --- INVENTORY (10) --- Subdweller Power Source Light Treads Subdweller Monowheel High-capacity Storage Unit Makeshift Light Armor Plating Gun Armor Scrap Shield Subdweller Laser Subdweller Shrapnel Launcher Peak State ------------ > --- POWER ------------ Light Nuclear Core > --- PROPULSION ------- Light Treads Light Treads > --- UTILITY ---------- Medium Storage Unit Makeshift Light Armor Plating > --- WEAPON ----------- Medium Laser Slug Cannon > --- INVENTORY -------- Subdweller Power Source Compact Wheel Subdweller Monowheel Subdweller Monowheel High-capacity Storage Unit Makeshift Light Armor Plating Scrap Shield Subdweller Shrapnel Launcher Subdweller Shrapnel Launcher [Rating: 17] Favorites ----------- Power Light Ion Engine Engine Light Ion Engine Power Core Light Nuclear Core Propulsion Light Treads Treads Light Treads Wheel Subdweller Monowheel Utility Medium Storage Unit Device Improved Terrain Scanner Storage Medium Storage Unit Protection Makeshift Light Armor Plating Weapon Medium Laser Energy Gun Medium Laser Ballistic Gun Subdweller Machine Gun Ballistic Cannon Slug Cannon Launcher Grenade Launcher Build | -11 -10 -10 -7 ------- Run | Yrd Mat Sub Rec Slots Evolved . | . . . . Power . | . . . . Propulsion . | . . . . Utility . | . . . . Weapon . | . . . . Parts Attached 43 | 7 5 31 . Power 7 | 1 1 5 . Engine 6 | 1 1 4 . Core 1 | . . 1 . Reactor . | . . . . Propulsion 10 | 2 2 6 . Treads 4 | . 2 2 . Leg . | . . . . Wheel 6 | 2 . 4 . Hover . | . . . . Flight . | . . . . Utility 9 | 2 1 6 . Device 1 | 1 . . . Storage 4 | 1 1 2 . Processor . | . . . . Hackware . | . . . . Protection 4 | . . 4 . Artifact . | . . . . Weapon 17 | 2 1 14 . Energy Gun 4 | 1 . 3 . Energy Cannon . | . . . . Ballistic Gun 3 | 1 . 2 . Ballistic Cannon 1 | . . 1 . Launcher 9 | . 1 8 . Special Weapon . | . . . . Impact Weapon . | . . . . Slashing Weapon . | . . . . Piercing Weapon . | . . . . Special Melee Weapon . | . . . . Unidentified Prototypes . | . . . . Parts Lost 10 | . . 8 2 Power 3 | . . 2 1 Propulsion 3 | . . 2 1 Utility 1 | . . 1 . Weapon 3 | . . 3 . Highest Loss Streak 2 | . . 2 2 To Critical Strikes . | . . . . Average Slot Usage (%) 99 | . 99 99 . Engine 13 | . 14 12 . Treads 17 | . 12 18 . Wheel 9 | . 15 8 . Device 3 | . 14 1 . Storage 14 | . 14 14 . Protection 10 | . . 12 . Energy Gun 11 | . 14 11 . Ballistic Gun 4 | . 2 5 . Ballistic Cannon 2 | . . 3 . Launcher 8 | . 11 7 . Peak Build Rating 17 | 9 10 17 15 Average Rating 13 | 5 9 13 15 On Entrance 8 | . 9 10 15 Naked Turns . | . . . . Heaviest Build 32 | 13 19 32 29 Greatest Support 40 | 26 40 40 36 Greatest Overweight (x) 1 | . . 1 . Average Overweight (x) . | . . . . Largest Inventory Capacity 20 | 8 10 20 10 Average Capacity 9 | 7 9 10 10 Most Carried 10 | 6 9 10 10 Average Carried 9 | 2 7 9 10 Final Capacity 10 | 8 10 10 10 Final Carried 10 | 5 8 10 10 Class Distribution -------------------- 73% | Mutant 26% | Scavenger-Mutant Dominant Class ---------------- Mutant | -10/Materials Mutant | -10/Subcaves Mutant | -7/Recycling Resources | -11 -10 -10 -7 ----------- Run | Yrd Mat Sub Rec Matter Collected 1498 | 279 16 1203 . Remotely . | . . . . Salvage Created 919 | 82 99 738 . Parts 67 | 8 15 44 . Haulers Intercepted . | . . . . Recyclers Shooed . | . . . . Parts Field Recycled . | . . . . Retrieved Matter . | . . . . Parts Self-Destructed 10 | . . 10 . Prevented . | . . . . Kills | -11 -10 -10 -7 ------- Run | Yrd Mat Sub Rec Combat Hostiles Destroyed 35 | . 5 30 . Guns 14 | . 2 12 . Cannons 2 | . . 2 . AOE 19 | . 3 16 . Classes Destroyed 9 | 2 4 3 . Builder 1 | . 1 . . Tunneler 1 | 1 . . . Recycler 1 | 1 . . . Watcher 1 | . 1 . . Swarmer 8 | . 3 5 . Grunt 6 | . 2 4 . Sentry 1 | . . 1 . Artisan 1 | . . 1 . Subdweller 20 | . . 20 . Best Kill Streak 4 | 1 4 4 . Combat Bots Only 4 | . 3 4 . Max Kills in Single Turn 3 | 1 3 3 . Gunslinging 1 | . . 1 . Exploded 3 | . 2 3 . Melee . | . . . . Uniques/NPCs Destroyed . | . . . . Combat | -11 -10 -10 -7 -------- Run | Yrd Mat Sub Rec Hostile Shots Fired 143 | . 9 125 9 Missed 50 | . 3 46 1 Damage Taken 1939 | . 77 1808 54 Core 252 | . 19 227 6 Absorbed by Shields . | . . . . Core Remaining (%) 100 | 100 . . . Volleys Fired 147 | 10 8 129 . Largest 2 | 2 2 2 . Hottest 98 | 70 80 98 . Shots Fired 245 | 20 16 209 . Gun 148 | 20 8 120 . Cannon 44 | . . 44 . Launcher 53 | . 8 45 . Special . | . . . . Kinetic 120 | 10 . 110 . Thermal 94 | 10 8 76 . Explosive 31 | . 8 23 . Electromagnetic . | . . . . Robot Hit Streak 14 | 3 2 14 . Robot Miss Streak 8 | 1 2 8 . Penetration Max . | . . . . Secondary Targets 1 | . . 1 . Max Gunslinging Chain 1 | . . 1 . Shots Hit Robots 104 | 12 4 88 . Core Hits 70 | 3 14 53 . Critical Kills 1 | . . 1 . Critical Parts Destroyed . | . . . . Critical Strikes 3 | . . 3 . Burn 2 | . . 2 . Destroy 1 | . . 1 . Melee Attacks . | . . . . Impact . | . . . . Slashing . | . . . . Piercing . | . . . . Sneak Attacks . | . . . . Combat Hostiles . | . . . . Follow-up Attacks . | . . . . Damage Inflicted 3563 | 126 342 3095 . Guns 936 | 126 26 784 . Cannons 340 | . . 340 . Explosions 2287 | . 316 1971 . Melee . | . . . . Ramming . | . . . . Kinetic 1731 | 76 . 1655 . Thermal 605 | 50 26 529 . Explosive 1227 | . 316 911 . Electromagnetic . | . . . . Impact . | . . . . Slashing . | . . . . Piercing . | . . . . Highest Corruption . | . . . . Average Corruption . | . . . . Corruption Purged . | . . . . Corruption Blocked . | . . . . Overload Shots . | . . . . Overflow Damage 65 | . 10 55 . Projectiles 19 | . . 19 . Explosions 46 | . 10 36 . Melee . | . . . . Knockbacks 1 | . . 1 . Impact . | . . . . Kinetic 1 | . . 1 . Secondary . | . . . . Self-Inflicted Damage 271 | . 11 260 . Shots 12 | . 2 10 . Rammed . | . . . . Targets Rammed . | . . . . Kicked . | . . . . Crushed . | . . . . Highest Temperature 78 | 27 78 14 . Average Temperature 20 | 12 37 4 . Received Heat Transfer 306 | . 24 270 12 Siege Activations . | . . . . Robots Corrupted . | . . . . Combat Hostiles . | . . . . Parts Fried . | . . . . Impact Corruptions . | . . . . Robots Melted . | . . . . Combat Hostiles . | . . . . Parts Melted 1 | . . 1 . Heat Transferred 1912 | 148 74 1690 . Parts Sabotaged . | . . . . Parts Stolen . | . . . . Parts Stripped . | . . . . Power Chain Reactions . | . . . . Alert | -11 -10 -10 -7 ------- Run | Yrd Mat Sub Rec Peak Influence 283 | 10 283 . . Initial 6 | . 6 . . Average 107 | 3 122 . . Maximum Alert Level 1 | . 1 . . Low Security (%) 81 | 100 79 . 100 Level 1 18 | . 20 . . Level 2 . | . . . . Level 3 . | . . . . Level 4 . | . . . . Level 5 . | . . . . High Security . | . . . . Max Security . | . . . . Squads Dispatched . | . . . . Investigation . | . . . . Extermination . | . . . . Reinforcement . | . . . . Assault . | . . . . Garrison . | . . . . Intercept . | . . . . Searches Triggered . | . . . . Construction Impeded . | . . . . Haulers Reinforced . | . . . . Active Scanning Responses . | . . . . Cargo Convoy Interrupts . | . . . . Stealth | -11 -10 -10 -7 --------- Run | Yrd Mat Sub Rec Distress Signals 2 | . 2 . . Communications Jammed . | . . . . Distress Signals . | . . . . Times Spotted 44 | . 9 34 1 Peak Tracking Total 6 | . 4 6 1 Tactical Retreats 2 | . 1 1 . Traps | -11 -10 -10 -7 ------- Run | Yrd Mat Sub Rec Traps Triggered 5 | . . 5 . Indirectly . | . . . . Trap Hack Attempts . | . . . . Triggered . | . . . . Disarmed . | . . . . Reprogrammed . | . . . . Reused . | . . . . Traps Extracted . | . . . . Installed . | . . . . Triggered . | . . . . Machines | -11 -10 -10 -7 ---------- Run | Yrd Mat Sub Rec Machines Disabled 3 | . 2 1 . Max in Single Turn 1 | . 1 1 . Machines Repaired . | . . . . Machines Dismantled . | . . . . Machines Sabotaged . | . . . . Overloaded Fab Kills . | . . . . Hacking | -11 -10 -10 -7 --------- Run | Yrd Mat Sub Rec Machines Accessed 6 | . 3 3 . Terminals 3 | . 3 . . Fabricators . | . . . . Repair Stations . | . . . . Recycling Units . | . . . . Scanalyzers . | . . . . Garrison Access . | . . . . Total Hacks 17 | . 5 12 . Successful 16 | . 4 12 . Failed 1 | . 1 . . Catastrophic . | . . . . Database Lockouts . | . . . . Manual 5 | . 5 . . Terminals 5 | . 5 . . Fabricators . | . . . . Repair Stations . | . . . . Recycling Units . | . . . . Scanalyzers . | . . . . Garrison Access . | . . . . Terminal Hacks 15 | . 3 12 . Record 9 | . . 9 . Part Schematic 1 | . 1 . . Open Door 1 | . . 1 . Emergency Access Points 2 | . 2 . . Derelict Proto ID Bank 1 | . . 1 . Release Object 1 | . . 1 . Fabricator Hacks . | . . . . Repair Station Hacks . | . . . . Recycling Unit Hacks . | . . . . Scanalyzer . | . . . . Garrison Access Hacks . | . . . . Unauthorized Hacks 1 | . 1 . . Terminals 1 | . 1 . . Botnet 1 | . 1 . . Fabricators . | . . . . Repair Stations . | . . . . Recycling Units . | . . . . Scanalyzers . | . . . . Garrison Access . | . . . . Data Cores Recovered . | . . . . Used . | . . . . Hacking Detections 2 | . 2 . . Full Trace Events . | . . . . Feedback Events . | . . . . Feedback Blocked . | . . . . Robot Schematics Acquired . | . . . . Robots Built . | . . . . Authchips . | . . . . Time . | . . . . Total Robot Build Rating . | . . . . Part Schematics Acquired 1 | . 1 . . Parts Built . | . . . . Authchips . | . . . . Time . | . . . . Total Part Build Rating . | . . . . Parts Repaired . | . . . . Time . | . . . . Parts Recycled . | . . . . Recycled Matter . | . . . . Retrieved Matter . | . . . . Retrieved Components . | . . . . Parts Scanalyzed . | . . . . Part Schematics Acquired . | . . . . Parts Damaged . | . . . . Bothacking | -11 -10 -10 -7 ------------ Run | Yrd Mat Sub Rec Used RIF Installer . | . . . . Robots Hacked . | . . . . Non-combat . | . . . . Combat . | . . . . Robot Hacks Applied . | . . . . Relay Couplers Released . | . . . . Fabnet Peak Effective % . | . . . . Robots Rewired . | . . . . Allies Hacked . | . . . . Hacks Repelled . | . . . . Allies | -11 -10 -10 -7 -------- Run | Yrd Mat Sub Rec Total Allies . | . . . . Largest Group . | . . . . Highest-Rated Group . | . . . . Highest-Rated Ally . | . . . . Total Orders . | . . . . Ally Attacks . | . . . . Total Damage . | . . . . Kills . | . . . . Allies Corrupted . | . . . . Allies Melted . | . . . . Intel | -11 -10 -10 -7 ------- Run | Yrd Mat Sub Rec Robot Analysis Total . | . . . . Derelict Logs Recovered 2 | . . 2 . Drone Launches . | . . . . Drone Recoveries . | . . . . Exploration | -11 -10 -10 -7 ------------- Run | Yrd Mat Sub Rec Turns Passed 4526 | 95 679 3748 4 Spaces Moved 2903 | 55 490 2355 3 Core 1 | 1 . . . Treads 1489 | . 115 1374 . Legs . | . . . . Wheels 1413 | 54 375 981 3 Hover . | . . . . Flight . | . . . . Fastest Speed 50 | 50 90 105 105 Average Speed 133 | 88 106 139 105 Slowest Speed 240 | 90 160 240 105 Overloaded Moves . | . . . . Propulsion Burnouts . | . . . . Robots Hopped . | . . . . Cave-ins Triggered . | . . . . Exploration Rate (%) 40 | 5 63 93 2 Regions Visited 3 Branch Regions 2 Pre-discovered Areas 1 | . . 1 . Known Exits Taken . | . . . . Unknown Exits Taken 3 | 1 1 1 . Scrap Searched 10 | . . 10 . Spaces Dug 51 | . 15 36 . Terrain Destroyed 440 | . 48 392 . Melee . | . . . . Projectile 13 | . . 13 . AOE 427 | . 48 379 . Terrain Rammed . | . . . . Walls Destroyed . | . . . . Machines Disabled . | . . . . Actions | -11 -10 -10 -7 --------- Run | Yrd Mat Sub Rec Total 3304 | 77 632 2592 3 Wait 169 | . 122 47 . Move 2900 | 54 489 2354 3 Hop . | . . . . Pick Up 25 | 6 4 15 . Fast Attach 12 | 6 1 5 . Attach 6 | 1 1 4 . Detach . | . . . . Swap 25 | . 3 22 . Drop 20 | . 4 16 . Fire 147 | 10 8 129 . Melee . | . . . . Ram . | . . . . Kick . | . . . . Crush . | . . . . Escape Stasis . | . . . . Rewire . | . . . . Trap . | . . . . Miscellaneous . | . . . . Route ------- -11/Scrapyard -10/Materials (discovered 4 exits: [*Mat] / [*Min x2] / *Sub) -10/Subcaves (discovered 3 exits: [*Mat x2] / [*Rec]) -7/Recycling History --------- Turn | Location | Event 13 | -11/Scrapyard | Discovered new exit (range 15) 96 | -11/Scrapyard | Entered Materials 209 | -10/Materials | Discovered new exit (range 8) 286 | -10/Materials | Discovered new exit (range 12) 315 | -10/Materials | Build established: Mutant 508 | -10/Materials | Discovered new exit (range 16) 755 | -10/Materials | Discovered new exit (range 3) 775 | -10/Materials | Entered Subcaves 786 | -10/Subcaves | Learned location of Zion (-6) 786 | -10/Subcaves | Met a Zionite searching for "candidates" 922 | -10/Subcaves | Learned Materials emergency access door positions 1010 | -10/Subcaves | Discovered new exit (range 16) 1085 | -10/Subcaves | Ambushed by Subdweller buried in earth 1106 | -10/Subcaves | Disturbed a concealed Subdweller 2006 | -10/Subcaves | Discovered new exit (range 8) 2147 | -10/Subcaves | Ambushed by angry Subdweller bent on revenge 2277 | -10/Subcaves | Ambushed by Subdweller buried in earth 2278 | -10/Subcaves | Core integrity fell below 50% 2360 | -10/Subcaves | Shifting Twisted Machinery released Scrap Shield 2433 | -10/Subcaves | Shifting Twisted Machinery released Hvy. Battle Rifle 2444 | -10/Subcaves | Shifting Twisted Machinery released Sub. Laser 3148 | -10/Subcaves | Learned Materials emergency access door positions 3200 | -10/Subcaves | Ambushed by Subdweller buried in earth 3430 | -10/Subcaves | Visited 4L-MR0's lab 3447 | -10/Subcaves | Found Gun Armor 3552 | -10/Subcaves | Core integrity fell below 20% 3575 | -10/Subcaves | A swath of the cavern ceiling suddenly collapsed 3618 | -10/Subcaves | Shifting Twisted Machinery released Battle Rifle 3618 | -10/Subcaves | Build established: Scavenger-Mutant 3619 | -10/Subcaves | Shifting Twisted Machinery released Flamer 3915 | -10/Subcaves | A swath of the cavern ceiling suddenly collapsed 4511 | -10/Subcaves | Discovered new exit (range 10) 4523 | -10/Subcaves | Entered Recycling 4527 | -7/Recycling | Destroyed by Y-54 Guardian with Flak Gun Last Messages --------------- 03885_ Acquired 37 matter. A swath of the cavern ceiling suddenly collapses. 03919_ EN-NBD(R) destroyed. 03925_ 0I-ITR(R) destroyed. 03941_ Acquired 94 matter. 03983_ Subatomizers dissect the Disposable Heat Sink. 03985_ Sub. Monowheel shoots sparks and powers down. 04295_ Dropped Broken Sub. Monowheel. 04295_ Acquired Sub. Monowheel. 04353_ Sub. Monowheel shoots sparks and powers down. 04511_ EXIT=FOUND LOCATION=UNKNOWN GOAL=ESCAPE 04527_ Y-54 Guardian springs to life. 04527_ Lgt. Ion Engine destroyed. 04527_ Sub. Monowheel destroyed. Map ----- +----------------------------------------------------+ | | | | | | | | | ?????????????????????????????????????????????????? | | ?????????????????????????????????????????????????? | | ?????????????????????????????????????????????????? | | ?????????????????????????????????????????????????? | | ?????????????????????????????????????????????????? | | ?????????????????????????????????????????????????? | | ?????????????????????????????????????????????????? | | ?????????????????????????????????????????????????? | | ?????????????????????????????????????????????????? | | ?????????????????????????????????????????????????? | | ?????????????????????????????????????????????????? | | ?????????????????????????????????????????????????? | | ?????????????????????????????????????????????????? | | ?????????????????????????????????????????????????? | | ?????????????????????????????????????????????????? | | ?????????????????????????????????????????????????? | | ?????????????????????????????????????????????????? | | ??????????????####??????###??????????????????????? | | ??????????????# #####Y#####??????????????????? | | ??????????????# #??????????????????? | | ??????????????+ T #??????????????????? | | ??????????????# @ #??????????????????? | | ??????????????# ####+######??????????????????? | | ?????????????????????????????????????????????????? | | ?????????????????????????????????????????????????? | | ?????????????????????????????????????????????????? | | ?????????????????????????????????????????????????? | | ?????????????????????????????????????????????????? | | ?????????????????????????????????????????????????? | | ?????????????????????????????????????????????????? | | ?????????????????????????????????????????????????? | | ?????????????????????????????????????????????????? | | ?????????????????????????????????????????????????? | | ?????????????????????????????????????????????????? | | ?????????????????????????????????????????????????? | | ?????????????????????????????????????????????????? | | ?????????????????????????????????????????????????? | | ?????????????????????????????????????????????????? | | ?????????????????????????????????????????????????? | | ?????????????????????????????????????????????????? | | ?????????????????????????????????????????????????? | | ?????????????????????????????????????????????????? | | ?????????????????????????????????????????????????? | | ?????????????????????????????????????????????????? | | ?????????????????????????????????????????????????? | | ?????????????????????????????????????????????????? | +----------------------------------------------------+ Best States ------------- Heat Dissipation 25 Energy Generation 15 Energy Capacity 250 Matter Stores 300 Matter Capacity 300 Sight Range 16 Terrain Scan Range 16 Terrain Scan Density 10 Armor Coverage 100 Evasion (%) 42 Recoil Reduction 2 Item Schematics ----------------- Signal Interpreter | -10/Materials | Hacked Robot Schematics ------------------ None Fabricated ------------ Nothing Alien Tech Used ----------------- None Achievements -------------- None Challenges ------------ None Game ------ Seed DiametricLaserCharger Manual? 0 Play Time 00:34:08 Cumulative 14.7 hours Start 2024.08.13 @ 14:31:07 End 2024.08.14 @ 10:05:01 Sessions 5 Manual Loads 0 Difficulty Rogue Special Mode None Game No. 19 Rogue 18 Adventurer 0 Explorer 1 Win Type - Total 0 Types 0/0/0/0/0/0/0/0/0 Lore% 27 Gallery% 19 Achievement% 20 Wizard Run 0 Options --------- Layout 2 ASCII 0 Keyboard 0 Movement Mouse Keybinds 0 Fullscreen 2 Font 32/Smallcaps Map View 50x44 Zoom Use 0% Tactical HUD 1 Map Filters NONE Filters NONE Steam 1 RUN: ae3bb40a-7bd9-4e37-8978-c633b86255b4